bitfinex/quotes_SOLUSD_20251226
["timestamp","ask_amount","ask_price","bid_price","bid_amount"]
[1766729491083,8.8165104,123.51,123.48,0.66]
[1766729493396,12.21735147,123.51,123.48,0.66]
[1766729495604,8.8165104,123.51,123.48,0.66]
[1766729497111,0.72,123.51,123.48,0.66]
[1766729508324,8.81657156,123.51,123.48,0.66]
[1766729522844,8.81657156,123.51,123.46,41.43267625]
[1766729522845,0.65,123.5,123.46,33.33299155]
[1766729523015,0.65,123.48,123.44,2.17763791]
[1766729523208,2.17763791,123.47,123.43,15.5]
[1766729523535,2.82763791,123.47,123.44,0.7]
[1766729523919,0.65,123.47,123.44,0.7]
[1766729527640,10.27677435,123.47,123.42,8.10231008]
[1766729527813,14.78,123.49,123.42,0.7]
[1766729528014,2.17763791,123.46,123.42,0.7]
[1766729528235,14.78,123.46,123.42,2.87763791]
[1766729528522,14.78,123.46,123.43,0.7]
[1766729532743,25.05686652,123.47,123.43,0.7]
[1766729532922,25.14686652,123.47,123.43,0.7]
[1766729533445,25.05686652,123.47,123.43,0.7]
[1766729533626,0.09,123.46,123.43,0.7]
[1766729539846,14.8,123.47,123.44,0.68]
[1766729542831,14.8,123.47,123.45,0.68]
[1766729544132,0.09,123.48,123.45,0.68]
[1766729544637,10.36643314,123.48,123.45,0.68]
[1766729544838,2.17763791,123.47,123.45,0.68]
[1766729545156,10.36643314,123.48,123.45,0.68]
[1766729545969,2.26763791,123.47,123.43,0.68]
[1766729546263,2.26763791,123.46,123.43,0.68]
[1766729549660,0.09,123.46,123.43,0.68]
[1766729549865,2.26763791,123.47,123.43,0.68]
[1766729551836,10.36695461,123.47,123.43,0.68]
[1766729553440,10.27695461,123.47,123.43,0.68]
[1766729554172,10.36695461,123.47,123.43,0.68]
[1766729554864,8.1893167,123.47,123.43,0.68]
[1766729555037,8.0993167,123.47,123.44,0.68]
[1766729555868,10.3662573,123.48,123.44,0.68]
[1766729557553,25.1662573,123.48,123.44,0.68]
[1766729557868,22.98861939,123.48,123.44,0.68]
[1766729558566,8.09783604,123.49,123.44,0.68]
[1766729558775,8.18585492,123.52,123.48,0.68]
[1766729559070,25.16349283,123.52,123.48,0.68]
[1766729559372,22.89585492,123.52,123.49,0.68]
[1766729559664,8.18388911,123.55,123.51,0.68]
[1766729559969,22.98388911,123.55,123.51,0.68]
[1766729560956,25.16152702,123.55,123.51,0.68]
[1766729561380,14.8,123.55,123.51,2.17763791]
[1766729561566,22.98272321,123.57,123.53,0.68]
[1766729561760,25.16036112,123.57,123.53,0.68]
[1766729561966,17.06763791,123.57,123.53,0.68]
[1766729562468,25.1602208,123.57,123.53,0.68]
[1766729563975,26.38259938,123.57,123.53,0.68]
[1766729564981,22.98258289,123.57,123.53,0.68]
[1766729565173,26.38259938,123.57,123.53,0.68]
[1766729567080,22.98258289,123.57,123.53,0.68]
[1766729567251,26.38259938,123.57,123.53,0.68]
[1766729568461,14.8,123.57,123.54,3.40001649]
[1766729568664,14.8,123.57,123.55,0.65]
[1766729569678,0.09,123.58,123.55,0.65]
[1766729570479,3.49001649,123.58,123.55,0.65]
[1766729570881,0.09,123.58,123.55,0.65]
[1766729571070,3.49001649,123.58,123.55,0.65]
[1766729571467,8.09180182,123.59,123.56,0.65]
[1766729571782,26.46089377,123.6,123.56,0.65]
[1766729572359,22.97087728,123.6,123.56,0.65]
[1766729572692,14.88,123.6,123.57,0.65]
[1766729573971,0.1,123.6,123.57,0.65]
[1766729574173,8.1791853,123.63,123.57,8.09221425]
[1766729574368,26.45920179,123.63,123.58,3.40001649]
[1766729574574,3.40001649,123.62,123.59,0.65]
[1766729575162,23.0591853,123.63,123.59,0.65]
[1766729575364,3.40001649,123.62,123.59,0.65]
[1766729576066,23.0591853,123.63,123.59,0.65]
[1766729576384,3.40001649,123.62,123.59,0.65]
[1766729578674,11.67920179,123.63,123.59,0.65]
[1766729579689,11.48920179,123.63,123.59,0.65]
[1766729579991,8.0891853,123.63,123.6,0.65]
[1766729580281,11.48920179,123.63,123.6,0.65]
[1766729580679,10.10080051,123.64,123.6,0.65]
[1766729580878,10.10080051,123.64,123.62,3.40001649]
[1766729581183,10.10080051,123.64,123.63,0.65]
[1766729586871,10.29080051,123.64,123.6,0.65]
[1766729587070,10.10080051,123.64,123.61,0.65]
[1766729587691,10.10080051,123.64,123.62,0.65]
[1766729588570,10.10080051,123.64,123.61,11.48996715]
[1766729588772,10.29080051,123.64,123.62,3.40001649]
[1766729588996,0.19,123.63,123.62,3.40001649]
[1766729589773,10.10080051,123.64,123.62,3.40001649]
[1766729589988,10.10080051,123.64,123.63,0.65]
[1766729592067,0.1,123.65,123.63,11.48819155]
[1766729592269,0.1,123.66,123.64,3.40001649]
[1766729592474,0.1,123.66,123.65,3.40001649]
[1766729592694,0.1,123.68,123.65,3.40001649]
[1766729593005,5.43870811,123.69,123.63,43.24988499]
[1766729593171,0.72,123.68,123.65,3.40001649]
[1766729593375,0.72,123.68,123.63,18.52584802]
[1766729593581,0.72,123.66,123.63,3.40001649]
[1766729593820,0.72,123.65,123.61,3.40001649]
[1766729594594,0.72,123.65,123.62,3.40001649]
[1766729595497,0.65,123.66,123.63,3.40001649]
[1766729595676,8.73548392,123.68,123.64,3.40001649]
[1766729595877,0.65,123.67,123.62,8.08922287]
[1766729596072,8.08548392,123.68,123.62,8.08922287]
[1766729596073,0.65,123.68,123.65,3.40001649]
[1766729596303,6.08870811,123.69,123.66,3.40001649]
[1766729597169,5.43870811,123.69,123.66,3.40001649]
[1766729597375,14.88,123.71,123.68,3.40001649]
[1766729597612,14.88,123.71,123.66,33.30378686]
[1766729597613,0.1,123.71,123.66,33.30378686]
[1766729597816,0.1,123.71,123.66,13.83768945]
[1766729597984,3.50001649,123.71,123.66,10.43767296]
[1766729598185,3.50001649,123.71,123.66,13.83768945]
[1766729598487,3.40001649,123.7,123.65,10.43767296]
[1766729598686,3.40001649,123.69,123.64,3.40001649]
[1766729598892,0.1,123.71,123.64,3.40001649]
[1766729599099,3.40001649,123.69,123.64,3.40001649]
[1766729599614,11.48530485,123.69,123.63,33.28577779]
[1766729599914,3.40001649,123.68,123.63,18.16001649]
[1766729600090,4.05001649,123.68,123.63,3.40001649]
[1766729600294,0.65,123.67,123.63,3.40001649]
[1766729600507,0.65,123.67,123.63,11.488638]
[1766729601291,0.65,123.67,123.62,13.83768945]
[1766729601292,3.40001649,123.67,123.62,13.83768945]
[1766729601493,4.05001649,123.66,123.6,14.76]
[1766729601697,0.65,123.65,123.61,3.40001649]
[1766729601998,0.65,123.64,123.6,14.76]
[1766729603323,0.65,123.64,123.6,18.16001649]
[1766729604000,0.65,123.64,123.6,14.76]
[1766729604310,0.65,123.64,123.6,18.16001649]
[1766729605722,0.65,123.64,123.6,14.76]
[1766729605909,0.65,123.64,123.6,18.16001649]
[1766729608024,0.65,123.64,123.6,26.25024924]
[1766729608522,0.65,123.65,123.61,3.40001649]
[1766729609022,0.65,123.64,123.6,14.76]
[1766729609194,0.65,123.64,123.6,18.16001649]
[1766729613421,0.65,123.64,123.6,26.25016469]
[1766729614218,3.40001649,123.63,123.57,3.40001649]
[1766729614422,0.65,123.62,123.57,21.93013657]
[1766729614728,0.65,123.62,123.58,3.40001649]
[1766729615723,11.4894471,123.62,123.56,22.8529654]
[1766729616028,0.65,123.59,123.54,14.76]
[1766729616348,0.65,123.59,123.55,3.40001649]
[1766729616835,0.65,123.59,123.54,36.69215108]
[1766729617213,0.65,123.58,123.54,28.59768945]
[1766729617416,0.65,123.58,123.54,36.69222233]
[1766729618908,11.49196918,123.58,123.54,10.43767296]
[1766729619135,0.65,123.57,123.54,10.43767296]
[1766729620121,4.05001649,123.57,123.52,26.27570634]
[1766729620325,4.05001649,123.57,123.52,36.7133793]
[1766729620523,4.05001649,123.57,123.52,33.31336281]
[1766729620729,4.05001649,123.57,123.52,36.7133793]
[1766729621240,0.65,123.55,123.52,10.43767296]
[1766729621911,0.65,123.54,123.5,11.49663725]
[1766729624031,0.65,123.54,123.5,10.27309461]
[1766729624621,0.68,123.56,123.52,2.17647385]
[1766729624837,0.68,123.56,123.53,2.17647385]
[1766729625033,0.68,123.56,123.52,2.17647385]
[1766729625209,0.68,123.56,123.5,8.09662076]
[1766729625415,0.68,123.56,123.52,2.17647385]
[1766729625827,8.09168661,123.59,123.53,2.17647385]
[1766729626030,2.85647385,123.58,123.53,2.17647385]
[1766729626240,0.68,123.58,123.54,2.17647385]
[1766729627218,0.68,123.57,123.52,33.31298697]
[1766729627535,0.68,123.57,123.53,2.17647385]
[1766729628238,2.17647385,123.57,123.52,20.70946082]
[1766729628419,0.68,123.56,123.52,35.48946082]
[1766729630619,0.68,123.56,123.53,2.17647385]
[1766729630851,0.68,123.56,123.52,33.31298697]
[1766729631026,0.68,123.56,123.53,2.17647385]
[1766729632132,0.68,123.56,123.54,2.17647385]
[1766729632326,0.68,123.57,123.52,33.31298697]
[1766729632526,0.68,123.57,123.54,2.17647385]
[1766729635244,8.09152836,123.59,123.54,2.17647385]
[1766729635421,8.77152836,123.59,123.55,2.17647385]
[1766729635747,8.77152836,123.59,123.54,2.17647385]
[1766729635748,0.68,123.58,123.54,2.17647385]
[1766729636140,0.68,123.58,123.54,10.27066254]
[1766729636531,0.68,123.58,123.54,8.09418869]
[1766729636841,0.68,123.58,123.54,10.27066254]
[1766729639930,0.68,123.57,123.53,2.17647385]
[1766729641336,10.26914545,123.57,123.52,25.21767296]
[1766729641652,0.68,123.55,123.51,10.27295012]
[1766729642942,2.17647385,123.57,123.52,10.2721487]
[1766729643266,0.68,123.56,123.52,10.2721487]
[1766729644561,8.77367551,123.56,123.51,2.17647385]
[1766729644862,0.68,123.55,123.5,12.61414681]
[1766729645052,0.68,123.55,123.51,2.17647385]
[1766729645858,0.68,123.54,123.5,12.61414681]
[1766729647040,0.68,123.54,123.49,22.87756846]
[1766729647264,0.68,123.54,123.5,2.17647385]
[1766729647870,8.09220287,123.58,123.5,28.33987993]
[1766729648033,0.68,123.57,123.53,2.17647385]
[1766729648233,0.68,123.57,123.52,12.61414681]
[1766729649141,0.68,123.57,123.53,2.17647385]
[1766729651247,0.68,123.57,123.52,20.70965587]
[1766729651860,0.68,123.56,123.52,20.70965587]
[1766729653377,0.68,123.59,123.53,14.78]
[1766729653751,2.17647385,123.59,123.54,2.17647385]
[1766729653948,0.69,123.58,123.54,2.17647385]
[1766729654251,0.69,123.58,123.53,14.78]
[1766729654450,0.69,123.58,123.54,2.17647385]
[1766729655243,0.69,123.58,123.53,22.87488669]
[1766729655443,0.69,123.58,123.54,2.17647385]
[1766729656345,0.69,123.58,123.54,10.27095605]
[1766729657152,0.69,123.58,123.54,8.0944822]
[1766729657340,0.69,123.58,123.54,10.27095605]
[1766729658450,0.69,123.58,123.54,2.17647385]
[1766729659870,0.69,123.58,123.53,22.87504407]
[1766729660061,0.69,123.58,123.54,2.17647385]
[1766729661877,0.69,123.58,123.54,10.27101499]
[1766729663358,0.69,123.58,123.55,2.17647385]
[1766729663865,0.69,123.58,123.55,10.27016186]
[1766729664647,0.69,123.58,123.55,8.09368801]
[1766729664853,0.69,123.58,123.55,10.27016186]
[1766729666786,0.69,123.58,123.54,8.09454427]
[1766729666970,0.69,123.58,123.55,2.17647385]
[1766729670788,0.69,123.58,123.54,10.27101812]
[1766729672084,0.69,123.57,123.53,16.95647385]
[1766729673086,0.69,123.57,123.53,25.05164206]
[1766729674783,0.69,123.56,123.5,10.43767296]
[1766729674985,0.69,123.56,123.51,16.95647385]
[1766729675687,0.69,123.55,123.51,25.05287792]
[1766729676687,0.69,123.54,123.49,2.17647385]
[1766729677584,0.69,123.54,123.49,8.09779837]
[1766729678084,0.69,123.54,123.49,10.27427222]
[1766729679193,2.17647385,123.54,123.49,10.27427222]
[1766729679374,0.69,123.53,123.49,10.27427222]
[1766729679880,0.69,123.52,123.49,2.17647385]
[1766729680389,0.69,123.54,123.49,2.17647385]
[1766729680694,0.69,123.54,123.5,2.17647385]
[1766729682097,0.69,123.54,123.48,22.87846372]
[1766729682271,0.69,123.54,123.5,2.17647385]
[1766729682601,0.69,123.54,123.51,2.17647385]
[1766729684295,0.69,123.54,123.51,10.27287996]
[1766729685396,0.69,123.54,123.49,20.24342163]
[1766729685597,0.69,123.54,123.51,2.17647385]
[1766729686097,0.69,123.54,123.51,3.40051395]
[1766729686292,0.69,123.54,123.49,28.34124331]
[1766729686492,0.69,123.54,123.51,3.40051395]
[1766729687092,0.69,123.54,123.5,3.40051395]
[1766729687792,0.69,123.54,123.49,8.09782168]
[1766729687999,0.69,123.54,123.5,3.40051395]
[1766729688196,0.69,123.54,123.49,8.09782168]
[1766729688497,0.69,123.54,123.5,3.40051395]
[1766729688697,0.69,123.54,123.49,8.09782168]
[1766729688903,0.69,123.54,123.5,3.40051395]
[1766729689772,0.69,123.54,123.49,8.09782168]
[1766729689978,0.69,123.54,123.5,11.49763989]
[1766729691502,0.69,123.54,123.5,3.40051395]
[1766729691693,0.66,123.53,123.49,11.4980467]
[1766729691896,0.66,123.53,123.48,26.2787141]
[1766729692409,0.66,123.52,123.48,26.2787141]
[1766729693195,0.66,123.52,123.48,22.87820015]
[1766729693395,0.66,123.52,123.48,26.2787141]
[1766729694611,0.66,123.52,123.49,3.40051395]
[1766729695605,0.66,123.52,123.48,22.87820015]
[1766729695906,0.66,123.52,123.49,3.40051395]
[1766729697612,0.66,123.52,123.48,22.87820015]
[1766729697801,0.66,123.52,123.49,3.40051395]
[1766729698003,0.66,123.52,123.51,3.40051395]
[1766729698188,8.09461243,123.54,123.51,3.40051395]
[1766729698189,0.66,123.54,123.51,3.40051395]
[1766729699011,0.66,123.54,123.52,3.40051395]
[1766729699316,0.66,123.54,123.49,8.09774151]
[1766729699317,0.66,123.57,123.53,3.40051395]
[1766729699487,0.66,123.59,123.51,14.78]
[1766729699689,0.66,123.59,123.56,3.40051395]
[1766729700703,0.66,123.59,123.55,3.40051395]
[1766729701009,0.66,123.58,123.55,3.40051395]
[1766729705117,0.66,123.58,123.56,3.40051395]
[1766729705816,0.66,123.58,123.57,3.40051395]
[1766729706619,0.66,123.64,123.57,28.61818691]
[1766729706924,0.66,123.64,123.61,3.40051395]
[1766729707101,0.66,123.64,123.62,3.40051395]
[1766729708302,0.66,123.64,123.6,8.09034929]
[1766729708510,0.66,123.64,123.62,3.40051395]
[1766729709111,0.66,123.65,123.62,3.40051395]
[1766729709723,0.66,123.65,123.6,8.09034929]
[1766729710020,0.66,123.67,123.64,3.40051395]
[1766729710231,0.76,123.68,123.66,3.40051395]
[1766729710599,0.76,123.68,123.65,3.40051395]
[1766729710801,0.66,123.67,123.63,3.40051395]
[1766729711015,0.66,123.66,123.63,3.40051395]
[1766729711612,0.66,123.66,123.61,22.8696969]
[1766729711813,0.66,123.66,123.62,3.40051395]
[1766729712022,0.76,123.68,123.65,3.40051395]
[1766729713327,0.1,123.68,123.67,3.40051395]
[1766729713626,0.1,123.71,123.68,0.66]
[1766729713826,8.08150061,123.74,123.7,3.40051395]
[1766729715805,0.65,123.72,123.69,3.40051395]
[1766729716003,0.65,123.72,123.67,19.18323749]
[1766729716220,0.65,123.72,123.69,3.40051395]
[1766729716725,0.65,123.72,123.68,3.40051395]
[1766729716915,0.65,123.71,123.68,3.40051395]
[1766729717831,0.65,123.71,123.69,3.40051395]
[1766729718912,0.65,123.71,123.68,3.40051395]
[1766729718913,8.08350504,123.71,123.68,3.40051395]
[1766729719227,0.65,123.7,123.68,3.40051395]
[1766729722835,0.65,123.7,123.66,8.74615224]
[1766729723036,0.65,123.7,123.68,3.40051395]
[1766729727329,0.65,123.7,123.67,8.74590614]
[1766729727539,0.65,123.7,123.68,3.40051395]
[1766729731909,8.08169805,123.74,123.69,4.06051395]
[1766729732126,0.65,123.73,123.71,3.40051395]
[1766729732939,0.65,123.74,123.71,4.06051395]
[1766729733337,0.65,123.74,123.71,0.66]
[1766729733641,0.65,123.74,123.71,3.40051395]
[1766729733839,0.65,123.74,123.71,4.06051395]
[1766729735317,0.65,123.74,123.71,3.40051395]
[1766729735734,0.65,123.74,123.7,12.14439776]
[1766729735934,0.65,123.74,123.7,4.06051395]
[1766729737215,0.65,123.74,123.71,3.40051395]
[1766729737615,0.65,123.74,123.71,4.06051395]
[1766729738619,0.65,123.74,123.71,0.66]
[1766729738920,0.65,123.73,123.69,3.40051395]
[1766729739120,0.65,123.73,123.69,4.06051395]
[1766729739844,0.65,123.73,123.69,0.66]
[1766729740141,0.65,123.73,123.7,3.40051395]
[1766729746052,0.65,123.73,123.69,8.74449208]
[1766729746261,0.65,123.73,123.7,3.40051395]
[1766729748067,0.65,123.73,123.7,2.16983796]
[1766729749645,27.71259697,123.75,123.71,0.66]
[1766729749968,0.7,123.74,123.7,10.91391225]
[1766729750864,0.7,123.73,123.7,10.25391225]
[1766729752451,0.7,123.73,123.69,2.82983796]
[1766729752744,2.16983796,123.73,123.69,0.66]
[1766729752956,0.7,123.71,123.67,2.82983796]
[1766729753674,0.7,123.71,123.68,2.16983796]
[1766729757177,8.08345356,123.71,123.68,2.16983796]
[1766729757371,0.7,123.7,123.68,2.16983796]
[1766729758671,0.7,123.7,123.67,2.16983796]
[1766729759256,8.78345356,123.71,123.67,2.82983796]
[1766729760681,0.7,123.71,123.68,2.16983796]
[1766729762772,0.7,123.71,123.66,22.84625592]
[1766729762978,0.7,123.7,123.67,2.16983796]
[1766729764781,8.08352221,123.71,123.68,0.66]
[1766729764965,10.95336017,123.71,123.68,0.66]
[1766729765584,0.7,123.7,123.66,25.67609388]
[1766729765879,0.7,123.7,123.66,25.01609388]
[1766729767169,0.7,123.7,123.66,10.25609388]
[1766729768372,0.7,123.7,123.67,2.16983796]
[1766729769465,12.60751092,123.73,123.69,0.66]
[1766729769977,17.62983796,123.74,123.7,0.66]
[1766729770894,25.71132795,123.74,123.7,0.66]
[1766729771092,2.16983796,123.73,123.7,0.66]
[1766729772983,2.86983796,123.72,123.68,0.66]
[1766729773488,2.86983796,123.71,123.68,0.66]
[1766729774028,10.92330318,123.71,123.67,15.42]
[1766729774294,10.25330318,123.71,123.67,0.66]
[1766729774591,0.67,123.7,123.67,0.66]
[1766729775392,10.92330318,123.71,123.67,0.66]
[1766729775777,10.92330318,123.71,123.67,2.82983796]
[1766729777000,0.67,123.7,123.67,0.66]
[1766729777677,10.92392225,123.7,123.67,0.66]
[1766729779404,10.25392225,123.7,123.64,14.76]
[1766729779698,2.83983796,123.68,123.65,0.66]
[1766729780101,2.83983796,123.68,123.64,17.58983796]
[1766729780269,2.83983796,123.68,123.64,15.42]
[1766729780471,2.83983796,123.68,123.64,17.58983796]
[1766729780775,2.83983796,123.68,123.65,0.66]
[1766729780991,0.67,123.68,123.65,0.66]
[1766729781191,2.83983796,123.68,123.65,0.66]
[1766729781375,10.92558181,123.68,123.65,0.66]
[1766729781575,10.92558181,123.68,123.64,0.66]
[1766729781799,2.83983796,123.67,123.64,0.66]
[1766729781999,0.67,123.67,123.64,0.66]
[1766729782206,2.83983796,123.67,123.64,0.66]
[1766729783207,0.67,123.67,123.64,0.66]
[1766729784309,28.2942603,123.7,123.64,0.66]
[1766729784488,2.16983796,123.68,123.64,0.66]
[1766729784690,2.83983796,123.68,123.64,0.66]
[1766729786608,10.92526676,123.68,123.64,2.82983796]
[1766729787086,8.7554288,123.68,123.64,2.82983796]
[1766729787406,10.92526676,123.68,123.64,2.82983796]
[1766729787610,8.7554288,123.68,123.64,2.82983796]
[1766729787782,10.92526676,123.68,123.64,2.82983796]
[1766729789422,10.25485215,123.69,123.65,0.66]
[1766729789711,17.59983796,123.7,123.66,0.66]
[1766729790518,0.67,123.69,123.66,0.66]
[1766729791011,10.92390052,123.71,123.67,0.66]
[1766729791598,2.83983796,123.7,123.67,0.66]
[1766729793913,2.83983796,123.69,123.64,33.76462581]
[1766729794206,0.67,123.68,123.64,25.67754784]
[1766729794807,2.83983796,123.67,123.64,15.42]
[1766729794988,2.83983796,123.67,123.64,0.66]
[1766729795589,0.67,123.67,123.64,0.66]
[1766729796797,0.67,123.67,123.63,2.82983796]
[1766729797106,0.67,123.67,123.64,0.66]
[1766729797312,10.92566045,123.68,123.64,0.66]
[1766729799216,2.83983796,123.68,123.64,0.66]
[1766729799583,10.92526952,123.68,123.64,0.66]
[1766729800609,8.75543156,123.68,123.64,0.66]
[1766729800798,10.92526952,123.68,123.64,0.66]
[1766729801399,0.67,123.68,123.64,2.82983796]
[1766729802010,8.75544882,123.68,123.65,0.66]
[1766729803014,23.5134209,123.71,123.67,2.82983796]
[1766729803393,0.67,123.7,123.67,2.82983796]
[1766729803612,0.67,123.7,123.67,0.66]
[1766729805524,2.83983796,123.7,123.66,0.66]
[1766729805722,10.92400084,123.7,123.66,0.66]
[1766729806300,8.75416288,123.7,123.66,0.66]
[1766729806512,10.92400084,123.7,123.66,0.66]
[1766729808517,8.75416288,123.7,123.66,0.66]
[1766729808713,10.92400084,123.7,123.66,0.66]
[1766729809620,8.75416288,123.7,123.66,0.66]
[1766729809821,10.92400084,123.7,123.66,0.66]
[1766729810016,12.14682239,123.7,123.66,0.66]
[1766729810824,8.08416288,123.7,123.64,34.32876745]
[1766729811120,4.11265951,123.69,123.65,0.66]
[1766729811293,4.11265951,123.69,123.65,8.74733357]
[1766729811932,4.11265951,123.69,123.66,0.66]
[1766729813819,0.72,123.68,123.65,0.66]
[1766729814030,4.11265951,123.68,123.65,0.66]
[1766729821127,12.19739749,123.69,123.65,3.39265951]
[1766729821325,12.19739749,123.69,123.66,0.66]
[1766729821624,11.47739749,123.69,123.65,3.39265951]
[1766729821823,0.72,123.68,123.65,0.66]
[1766729826035,4.11265951,123.68,123.65,0.66]
[1766729827710,0.72,123.65,123.61,21.91981997]
[1766729827920,0.72,123.65,123.61,13.83033247]
[1766729828115,3.39265951,123.66,123.62,0.66]
[1766729828330,4.11265951,123.66,123.62,0.66]
[1766729828525,0.72,123.66,123.62,0.66]
[1766729828729,4.11265951,123.66,123.63,0.66]
[1766729831733,4.11265951,123.65,123.62,0.66]
[1766729836521,11.48022901,123.65,123.6,26.24299077]
[1766729836723,4.05265951,123.64,123.61,0.66]
[1766729837323,0.66,123.64,123.61,0.66]
[1766729837642,4.05265951,123.64,123.61,0.66]
[1766729838924,0.66,123.64,123.61,0.66]
[1766729840940,4.05265951,123.64,123.61,0.66]
[1766729841140,0.66,123.64,123.61,0.66]
[1766729841340,4.05265951,123.64,123.61,0.66]
[1766729841573,0.66,123.64,123.61,0.66]
[1766729842218,11.09767296,123.66,123.62,0.66]
[1766729842560,0.66,123.65,123.62,0.66]
[1766729843049,4.05265951,123.65,123.62,0.66]
[1766729844146,0.66,123.65,123.62,8.74919094]
[1766729844342,10.43767296,123.66,123.62,11.48185045]
[1766729844649,11.09767296,123.66,123.63,0.66]
[1766729844854,11.09767296,123.66,123.62,11.48185045]
[1766729844855,0.66,123.68,123.65,0.66]
[1766729845028,4.05265951,123.7,123.66,0.66]
[1766729845430,0.66,123.7,123.66,0.66]
[1766729845645,3.39265951,123.7,123.66,0.66]
[1766729845948,0.66,123.69,123.66,0.66]
[1766729848238,0.66,123.69,123.66,4.05265951]
[1766729848429,0.66,123.7,123.66,12.13908759]
[1766729848751,4.05265951,123.7,123.66,12.13908759]
[1766729848929,3.39265951,123.7,123.66,12.13908759]
[1766729849138,4.05265951,123.7,123.66,12.13908759]
[1766729849725,0.66,123.69,123.66,0.66]
[1766729849953,0.66,123.68,123.65,0.66]
[1766729850246,0.66,123.67,123.63,26.24111028]
[1766729850446,0.66,123.67,123.64,0.66]
[1766729851555,0.66,123.67,123.64,4.05265951]
[1766729851758,0.66,123.67,123.64,12.1405047]
[1766729851939,0.69,123.68,123.65,0.66]
[1766729852346,0.69,123.65,123.62,0.66]
[1766729852655,0.69,123.64,123.61,4.05265951]
[1766729853523,0.69,123.65,123.62,0.66]
[1766729855247,0.69,123.64,123.61,0.66]
[1766729857042,0.69,123.63,123.6,0.66]
[1766729857458,0.69,123.63,123.6,8.75059722]
[1766729859855,3.39265951,123.66,123.61,3.39265951]
[1766729860033,3.39265951,123.71,123.66,0.69]
[1766729860236,3.39265951,123.71,123.66,4.08265951]
[1766729860444,13.83033247,123.71,123.66,4.08265951]
[1766729861771,13.83033247,123.71,123.66,0.69]
[1766729861944,3.39265951,123.7,123.65,22.84675532]
[1766729862145,0.69,123.69,123.65,26.92941483]
[1766729862541,0.69,123.69,123.66,0.69]
[1766729864876,8.08209052,123.74,123.68,10.43767296]
[1766729865051,8.08209052,123.74,123.7,0.66]
[1766729865052,0.67,123.74,123.7,0.66]
[1766729865369,0.67,123.74,123.7,4.05265951]
[1766729865570,0.69,123.73,123.7,0.66]
[1766729866442,0.69,123.73,123.69,4.08265951]
[1766729866642,8.7724174,123.73,123.69,4.08265951]
[1766729867254,0.69,123.73,123.69,4.08265951]
[1766729868575,0.69,123.73,123.69,0.69]
[1766729868778,0.69,123.73,123.69,4.08265951]
[1766729870082,0.69,123.73,123.69,2.85988866]
[1766729872175,2.85988866,123.73,123.69,2.85988866]
[1766729872373,0.69,123.72,123.69,0.69]
[1766729872972,0.69,123.72,123.68,10.25501079]
[1766729872973,2.16988866,123.72,123.68,2.85988866]
[1766729873175,0.69,123.71,123.68,2.85988866]
[1766729874381,0.69,123.71,123.68,10.94521241]
[1766729874753,2.16988866,123.74,123.69,2.16988866]
[1766729874978,0.69,123.73,123.7,2.85988866]
[1766729877757,0.69,123.71,123.67,27.08135754]
[1766729877979,0.69,123.71,123.67,13.29756162]
[1766729878473,0.69,123.71,123.68,0.69]
[1766729880782,0.69,123.71,123.67,21.38335526]
[1766729881082,0.69,123.71,123.68,2.16988866]
[1766729881586,0.69,123.71,123.67,19.2134666]
[1766729881885,0.69,123.71,123.67,10.9456823]
[1766729882085,0.69,123.7,123.66,0.69]
[1766729882259,0.69,123.69,123.65,2.85988866]
[1766729882457,0.69,123.69,123.55,40.66877751]